[Event "*** Titled Tuesday Blitz"]
[Site "Chess.com"]
[Date "2020.12.01"]
[Round "5"]
[White "natelleka"]
[Black "Das_Virus_2020"]
[Result "0-1"]
[WhiteElo "2186"]
[BlackElo "2451"]
[TimeControl "180+1"]
[EndTime "10:55:14 PST"]
[Termination "Das_Virus_2020 won on time"]

1. e4 {[%clk 0:02:59.7]} 1... e6 {[%clk 0:02:59.6]} 2. d4 {[%clk 0:02:59.6]}
2... d5 {[%clk 0:02:59.7]} 3. Nc3 {[%clk 0:02:59.8]} 3... Nf6 {[%clk 0:02:59.3]}
4. e5 {[%clk 0:02:59.4]} 4... Nfd7 {[%clk 0:02:59]} 5. f4 {[%clk 0:02:59.6]}
5... c5 {[%clk 0:02:58.8]} 6. Nf3 {[%clk 0:02:59.8]} 6... Qb6 {[%clk 0:02:47]}
7. Ne2 {[%clk 0:02:54.9]} 7... Nc6 {[%clk 0:02:42.1]} 8. c3 {[%clk 0:02:51.5]}
8... a5 {[%clk 0:02:41.7]} 9. Ng3 {[%clk 0:02:26.9]} 9... a4 {[%clk 0:02:39.2]}
10. Be2 {[%clk 0:02:22.4]} 10... a3 {[%clk 0:02:23.3]} 11. Rb1 {[%clk
0:01:50.2]} 11... axb2 {[%clk 0:02:17.8]} 12. Rxb2 {[%clk 0:01:48.3]} 12... Qa7
{[%clk 0:02:13.1]} 13. O-O {[%clk 0:01:28.3]} 13... cxd4 {[%clk 0:01:58.8]} 14.
cxd4 {[%clk 0:01:28]} 14... Ba3 {[%clk 0:01:58.2]} 15. Rd2 {[%clk 0:01:25.6]}
15... Bb4 {[%clk 0:01:54.4]} 16. Rc2 {[%clk 0:01:22.8]} 16... h5 {[%clk
0:01:45.6]} 17. h4 {[%clk 0:00:43.7]} 17... g6 {[%clk 0:01:44.7]} 18. Kh2 {[%clk
0:00:38.5]} 18... Be7 {[%clk 0:01:40.3]} 19. Rd2 {[%clk 0:00:30.9]} 19... Nb6
{[%clk 0:01:35.3]} 20. Ng5 {[%clk 0:00:26.9]} 20... Bd7 {[%clk 0:01:21.8]} 21.
Bf3 {[%clk 0:00:26.2]} 21... Nc4 {[%clk 0:01:18.5]} 22. Rd3 {[%clk 0:00:24.3]}
22... Nb4 {[%clk 0:01:15.8]} 23. Rb3 {[%clk 0:00:17.8]} 23... Qxa2 {[%clk
0:01:10.2]} 24. f5 {[%clk 0:00:10.5]} 24... exf5 {[%clk 0:00:57]} 25. Bf4 {[%clk
0:00:10.4]} 25... Ba4 {[%clk 0:00:52.4]} 26. Rxb4 {[%clk 0:00:07.9]} 26... Bxd1
{[%clk 0:00:51.2]} 27. Rxb7 {[%clk 0:00:06.2]} 27... Bxf3 {[%clk 0:00:50.4]} 28.
Nxf3 {[%clk 0:00:06.1]} 28... Ne3 {[%clk 0:00:47.5]} 29. Rg1 {[%clk 0:00:04.9]}
29... Ng4+ {[%clk 0:00:45.8]} 30. Kh3 {[%clk 0:00:04.6]} 30... Qa6 {[%clk
0:00:43.1]} 31. Rc7 {[%clk 0:00:04.4]} 31... Bd8 {[%clk 0:00:40.5]} 32. Rcc1
{[%clk 0:00:04]} 32... O-O {[%clk 0:00:39.8]} 33. Bh6 {[%clk 0:00:03.8]} 33...
Re8 {[%clk 0:00:39.2]} 34. Bf4 {[%clk 0:00:03.5]} 34... Rc8 {[%clk 0:00:35.4]}
35. Rb1 {[%clk 0:00:03.4]} 35... Qa2 {[%clk 0:00:32.7]} 36. Ra1 {[%clk
0:00:03.1]} 36... Qc2 {[%clk 0:00:31.5]} 37. Ra7 {[%clk 0:00:02.8]} 37... Bb6
{[%clk 0:00:28.7]} 38. Rb7 {[%clk 0:00:01.6]} 38... Rb8 {[%clk 0:00:28.3]} 39.
Rd7 {[%clk 0:00:01.5]} 39... Rbd8 {[%clk 0:00:25.5]} 40. Rb7 {[%clk 0:00:01.5]}
40... Ba5 {[%clk 0:00:21.3]} 41. Rc1 {[%clk 0:00:01.5]} 41... Qa4 {[%clk
0:00:18.2]} 42. Bg5 {[%clk 0:00:01.7]} 42... Rb8 {[%clk 0:00:17.2]} 43. Rd7
{[%clk 0:00:01.6]} 43... Qa3 {[%clk 0:00:14.7]} 0-1

[Event "*** Titled Tuesday Blitz"]
[Site "Chess.com"]
[Date "2020.12.01"]
[Round "5"]
[White "Eloist"]
[Black "gagtemp"]
[Result "1-0"]
[WhiteElo "2303"]
[BlackElo "1949"]
[TimeControl "180+1"]
[EndTime "10:55:14 PST"]
[Termination "Eloist won by resignation"]

1. e4 {[%clk 0:03:00.9]} 1... d5 {[%clk 0:02:59.5]} 2. exd5 {[%clk 0:03:00.5]}
2... Qxd5 {[%clk 0:03:00.4]} 3. Nc3 {[%clk 0:03:00.5]} 3... Qd6 {[%clk
0:02:59.2]} 4. d4 {[%clk 0:03:00.3]} 4... Nf6 {[%clk 0:02:55.7]} 5. Nf3 {[%clk
0:03:00.2]} 5... a6 {[%clk 0:02:55]} 6. Bd3 {[%clk 0:02:58]} 6... g6 {[%clk
0:02:53.3]} 7. Ne4 {[%clk 0:02:55.3]} 7... Nxe4 {[%clk 0:02:46.9]} 8. Bxe4
{[%clk 0:02:56.2]} 8... Bg7 {[%clk 0:02:45.5]} 9. O-O {[%clk 0:02:55.7]} 9...
O-O {[%clk 0:02:42.9]} 10. Re1 {[%clk 0:02:54.5]} 10... Nc6 {[%clk 0:02:37.7]}
11. c3 {[%clk 0:02:53.5]} 11... f5 {[%clk 0:02:30.8]} 12. Bxc6 {[%clk
0:02:23.3]} 12... Qxc6 {[%clk 0:02:15.5]} 13. Rxe7 {[%clk 0:02:10.8]} 13... Be6
{[%clk 0:02:11]} 14. Bf4 {[%clk 0:02:03.7]} 14... Rac8 {[%clk 0:01:57.4]} 15.
Qe2 {[%clk 0:01:42.9]} 15... Bd5 {[%clk 0:01:35.9]} 16. Be5 {[%clk 0:01:39.1]}
16... Bh6 {[%clk 0:01:23.5]} 17. Re1 {[%clk 0:00:52.9]} 17... Bxf3 {[%clk
0:01:18.5]} 18. Qxf3 {[%clk 0:00:49.2]} 18... Qxf3 {[%clk 0:00:50.7]} 19. gxf3
{[%clk 0:00:50.1]} 19... Rf7 {[%clk 0:00:49.1]} 20. Rxf7 {[%clk 0:00:43.8]}
20... Kxf7 {[%clk 0:00:50]} 21. Kf1 {[%clk 0:00:37.8]} 21... c6 {[%clk
0:00:40.6]} 22. Bd6 {[%clk 0:00:36.1]} 22... Re8 {[%clk 0:00:38.9]} 23. Rxe8
{[%clk 0:00:35.1]} 23... Kxe8 {[%clk 0:00:39.8]} 24. Ke2 {[%clk 0:00:34.5]}
24... Kd7 {[%clk 0:00:39.3]} 25. Be5 {[%clk 0:00:33.8]} 25... Ke6 {[%clk
0:00:37.8]} 26. Kd3 {[%clk 0:00:33.3]} 26... b5 {[%clk 0:00:36]} 27. b3 {[%clk
0:00:33.1]} 27... Bc1 {[%clk 0:00:30.6]} 28. c4 {[%clk 0:00:32.4]} 28... Bb2
{[%clk 0:00:27.6]} 29. Bg7 {[%clk 0:00:27.7]} 29... Bc1 {[%clk 0:00:22.7]} 30.
a4 {[%clk 0:00:24.6]} 30... Bf4 {[%clk 0:00:18.7]} 31. h3 {[%clk 0:00:23.4]}
31... h5 {[%clk 0:00:16.5]} 32. Kc3 {[%clk 0:00:22.9]} 32... Kd6 {[%clk
0:00:15.2]} 33. Bf6 {[%clk 0:00:20.7]} 33... Bc1 {[%clk 0:00:13]} 34. Be5+
{[%clk 0:00:19.3]} 34... Kd7 {[%clk 0:00:11.8]} 35. Kb4 {[%clk 0:00:19.2]} 35...
Bd2+ {[%clk 0:00:10.9]} 36. Kc5 {[%clk 0:00:19]} 36... Bc1 {[%clk 0:00:10.4]}
37. axb5 {[%clk 0:00:18.2]} 37... axb5 {[%clk 0:00:09]} 38. cxb5 {[%clk
0:00:17.7]} 38... cxb5 {[%clk 0:00:08.4]} 39. Kxb5 {[%clk 0:00:17.4]} 39... Bb2
{[%clk 0:00:08.1]} 40. Kc5 {[%clk 0:00:14.2]} 40... Bc3 {[%clk 0:00:07.8]} 41.
b4 {[%clk 0:00:14]} 41... Be1 {[%clk 0:00:07.2]} 42. b5 {[%clk 0:00:09.5]} 42...
Bxf2 {[%clk 0:00:06.4]} 43. b6 {[%clk 0:00:09.5]} 43... Kc8 {[%clk 0:00:06.5]}
44. Kc6 {[%clk 0:00:09.3]} 44... Be1 {[%clk 0:00:03.8]} 45. b7+ {[%clk 0:00:09]}
1-0

[Event "*** Titled Tuesday Blitz"]
[Site "Chess.com"]
[Date "2020.12.01"]
[Round "5"]
[White "Lupul_Cenusiu"]
[Black "DinaBelenkaya"]
[Result "1-0"]
[WhiteElo "2580"]
[BlackElo "2394"]
[TimeControl "180+1"]
[EndTime "10:55:15 PST"]
[Termination "Lupul_Cenusiu won on time"]

1. d4 {[%clk 0:03:00.9]} 1... d5 {[%clk 0:02:57.9]} 2. c4 {[%clk 0:03:00.1]}
2... dxc4 {[%clk 0:02:58.8]} 3. Nc3 {[%clk 0:02:59.5]} 3... a6 {[%clk
0:02:57.6]} 4. e3 {[%clk 0:02:57.5]} 4... b5 {[%clk 0:02:56.5]} 5. a4 {[%clk
0:02:57.5]} 5... b4 {[%clk 0:02:56.8]} 6. Na2 {[%clk 0:02:57.1]} 6... c5 {[%clk
0:02:53.2]} 7. Bxc4 {[%clk 0:02:53.3]} 7... e6 {[%clk 0:02:49]} 8. Nf3 {[%clk
0:02:51.3]} 8... Bb7 {[%clk 0:02:48.7]} 9. O-O {[%clk 0:02:50.1]} 9... Nf6
{[%clk 0:02:49]} 10. Qe2 {[%clk 0:02:49.7]} 10... Nbd7 {[%clk 0:02:49.1]} 11.
Rd1 {[%clk 0:02:48.9]} 11... Qb6 {[%clk 0:02:47.7]} 12. Bd2 {[%clk 0:02:41.4]}
12... a5 {[%clk 0:02:01.9]} 13. Nc1 {[%clk 0:02:31.1]} 13... Be7 {[%clk
0:01:56.5]} 14. Nb3 {[%clk 0:02:23.1]} 14... O-O {[%clk 0:01:55.3]} 15. Rac1
{[%clk 0:02:17]} 15... Rfd8 {[%clk 0:01:53.8]} 16. Bb5 {[%clk 0:02:14.6]} 16...
Bc6 {[%clk 0:01:43.2]} 17. Bxc6 {[%clk 0:01:59.5]} 17... Qxc6 {[%clk 0:01:44.1]}
18. dxc5 {[%clk 0:01:51.7]} 18... Nxc5 {[%clk 0:01:26.6]} 19. Nxc5 {[%clk
0:01:46.1]} 19... Bxc5 {[%clk 0:01:27.5]} 20. Nd4 {[%clk 0:01:27.4]} 20... Qb6
{[%clk 0:01:25.4]} 21. Nb5 {[%clk 0:01:26.7]} 21... Ne4 {[%clk 0:01:22]} 22. Be1
{[%clk 0:01:26]} 22... Rxd1 {[%clk 0:01:04.7]} 23. Rxd1 {[%clk 0:01:25]} 23...
Rc8 {[%clk 0:01:04.6]} 24. Rc1 {[%clk 0:01:22.4]} 24... f5 {[%clk 0:00:39.1]}
25. Rd1 {[%clk 0:01:13.4]} 25... Qb7 {[%clk 0:00:31.6]} 26. f3 {[%clk
0:01:08.6]} 26... Nf6 {[%clk 0:00:31.8]} 27. Bf2 {[%clk 0:01:07]} 27... Nd5
{[%clk 0:00:31.1]} 28. e4 {[%clk 0:00:39.7]} 28... Nf4 {[%clk 0:00:31.1]} 29.
Qd2 {[%clk 0:00:38.5]} 29... Bxf2+ {[%clk 0:00:27.2]} 30. Kxf2 {[%clk
0:00:37.6]} 30... Qb6+ {[%clk 0:00:23.4]} 31. Kf1 {[%clk 0:00:34.9]} 31... g5
{[%clk 0:00:08.6]} 32. exf5 {[%clk 0:00:26.4]} 32... exf5 {[%clk 0:00:09.5]} 33.
Qd7 {[%clk 0:00:22]} 33... Qe6 {[%clk 0:00:08.1]} 34. Qxe6+ {[%clk 0:00:18.2]}
34... Nxe6 {[%clk 0:00:09]} 35. Rd2 {[%clk 0:00:16.8]} 35... f4 {[%clk
0:00:09.1]} 36. g3 {[%clk 0:00:16.1]} 36... Nc5 {[%clk 0:00:09.6]} 37. Rc2
{[%clk 0:00:14.7]} 37... Rc6 {[%clk 0:00:04.9]} 38. Nd4 {[%clk 0:00:14.2]} 38...
Rc7 {[%clk 0:00:05.2]} 39. Nb3 {[%clk 0:00:12.6]} 39... Na6 {[%clk 0:00:04.8]}
40. Rxc7 {[%clk 0:00:12.2]} 40... Nxc7 {[%clk 0:00:05.7]} 41. Nxa5 {[%clk
0:00:12.4]} 41... Nd5 {[%clk 0:00:06.1]} 42. Nc6 {[%clk 0:00:12.3]} 42... b3
{[%clk 0:00:05.6]} 43. a5 {[%clk 0:00:12.1]} 43... Ne3+ {[%clk 0:00:05.8]} 44.
Ke2 {[%clk 0:00:11.3]} 44... Nc4 {[%clk 0:00:06.7]} 45. a6 {[%clk 0:00:11.4]}
45... Nxb2 {[%clk 0:00:07.3]} 46. a7 {[%clk 0:00:11.3]} 46... Nd3 {[%clk
0:00:01.9]} 47. a8=Q+ {[%clk 0:00:12.2]} 1-0

[Event "*** Titled Tuesday Blitz"]
[Site "Chess.com"]
[Date "2020.12.01"]
[Round "5"]
[White "Sanyura"]
[Black "emiliochess"]
[Result "1-0"]
[WhiteElo "2518"]
[BlackElo "2349"]
[TimeControl "180+1"]
[EndTime "10:55:15 PST"]
[Termination "Sanyura won by checkmate"]

1. e4 {[%clk 0:02:37.2]} 1... c6 {[%clk 0:02:58.5]} 2. Nf3 {[%clk 0:02:36.7]}
2... d5 {[%clk 0:02:59.4]} 3. Nc3 {[%clk 0:02:37.3]} 3... Bg4 {[%clk 0:02:56.9]}
4. h3 {[%clk 0:02:36.4]} 4... Bxf3 {[%clk 0:02:50.7]} 5. Qxf3 {[%clk 0:02:37.3]}
5... d4 {[%clk 0:02:51.3]} 6. Ne2 {[%clk 0:02:36.3]} 6... e5 {[%clk 0:02:48.8]}
7. g4 {[%clk 0:02:35]} 7... Bd6 {[%clk 0:02:45.8]} 8. Ng3 {[%clk 0:02:33.2]}
8... g6 {[%clk 0:02:45.2]} 9. Bc4 {[%clk 0:02:32.9]} 9... Qf6 {[%clk 0:02:44.5]}
10. Qg2 {[%clk 0:02:31.4]} 10... b5 {[%clk 0:02:39.3]} 11. Bb3 {[%clk
0:02:31.3]} 11... Nd7 {[%clk 0:02:38.8]} 12. a4 {[%clk 0:02:29.7]} 12... Nc5
{[%clk 0:02:28.4]} 13. Ba2 {[%clk 0:01:46.8]} 13... Nxa4 {[%clk 0:02:22.8]} 14.
h4 {[%clk 0:01:46.8]} 14... Ne7 {[%clk 0:02:09.2]} 15. d3 {[%clk 0:01:45.3]}
15... h6 {[%clk 0:02:00.7]} 16. g5 {[%clk 0:01:21.2]} 16... hxg5 {[%clk
0:01:57.3]} 17. Bxg5 {[%clk 0:01:22.1]} 17... Qg7 {[%clk 0:01:56.3]} 18. O-O-O
{[%clk 0:01:12]} 18... O-O-O {[%clk 0:01:48.3]} 19. Kb1 {[%clk 0:01:06.2]} 19...
Kb7 {[%clk 0:01:41.8]} 20. Qf3 {[%clk 0:01:05.1]} 20... Rh7 {[%clk 0:01:14.4]}
21. h5 {[%clk 0:00:32.5]} 21... gxh5 {[%clk 0:01:12.9]} 22. Bf6 {[%clk
0:00:31.4]} 22... Qg6 {[%clk 0:01:08]} 23. Nxh5 {[%clk 0:00:30.8]} 23... Rg8
{[%clk 0:00:57.3]} 24. Ng3 {[%clk 0:00:30.9]} 24... Rxh1 {[%clk 0:00:56.1]} 25.
Rxh1 {[%clk 0:00:31.8]} 25... Nc5 {[%clk 0:00:47.5]} 26. Bxe7 {[%clk 0:00:31.1]}
26... Bxe7 {[%clk 0:00:48.4]} 27. Bxf7 {[%clk 0:00:30.7]} 27... Qg4 {[%clk
0:00:47.7]} 28. Qf5 {[%clk 0:00:28.9]} 28... Rg7 {[%clk 0:00:41.2]} 29. Qxg4
{[%clk 0:00:28]} 29... Rxg4 {[%clk 0:00:42.1]} 30. Nf5 {[%clk 0:00:28.6]} 30...
Bd8 {[%clk 0:00:35.1]} 31. Rh7 {[%clk 0:00:28.9]} 31... Kb6 {[%clk 0:00:31.5]}
32. Be8 {[%clk 0:00:26.6]} 32... Rg8 {[%clk 0:00:27.2]} 33. Bf7 {[%clk
0:00:24.9]} 33... Rg1+ {[%clk 0:00:27.4]} 34. Ka2 {[%clk 0:00:24.8]} 34... a5
{[%clk 0:00:28.3]} 35. Rh6 {[%clk 0:00:24.1]} 35... Kc7 {[%clk 0:00:23.5]} 36.
Be8 {[%clk 0:00:22.1]} 36... Rf1 {[%clk 0:00:20]} 37. Rxc6+ {[%clk 0:00:21.8]}
37... Kb7 {[%clk 0:00:20.5]} 38. Rxc5 {[%clk 0:00:22.2]} 38... Rxf2 {[%clk
0:00:21.2]} 39. Rxb5+ {[%clk 0:00:22.2]} 39... Kc8 {[%clk 0:00:20.5]} 40. Rc5+
{[%clk 0:00:22.2]} 40... Kb7 {[%clk 0:00:20.4]} 41. Nd6+ {[%clk 0:00:22.8]}
41... Kb6 {[%clk 0:00:20.2]} 42. Rc6+ {[%clk 0:00:23.4]} 42... Ka7 {[%clk
0:00:19.4]} 43. Nb5+ {[%clk 0:00:23.5]} 43... Kb7 {[%clk 0:00:17.1]} 44. Bd7
{[%clk 0:00:23.3]} 44... Bb6 {[%clk 0:00:17.2]} 45. Nd6+ {[%clk 0:00:22.7]}
45... Ka6 {[%clk 0:00:17]} 46. Nc4 {[%clk 0:00:22.7]} 46... Ka7 {[%clk
0:00:16.5]} 47. Rxb6 {[%clk 0:00:23]} 47... Rxc2 {[%clk 0:00:16.6]} 48. Rb5
{[%clk 0:00:23.4]} 48... a4 {[%clk 0:00:16.8]} 49. Ka3 {[%clk 0:00:22.2]} 49...
Rc1 {[%clk 0:00:16.9]} 50. Kxa4 {[%clk 0:00:22.7]} 50... Ka6 {[%clk 0:00:17.2]}
51. Rb6+ {[%clk 0:00:22.6]} 51... Ka7 {[%clk 0:00:17.5]} 52. Rb3 {[%clk
0:00:22.7]} 52... Ka6 {[%clk 0:00:16.8]} 53. Bc8+ {[%clk 0:00:22.9]} 53... Ka7
{[%clk 0:00:16.8]} 54. Rb7+ {[%clk 0:00:23.5]} 54... Ka6 {[%clk 0:00:16.1]} 55.
Rc7# {[%clk 0:00:23.7]} 1-0

[Event "*** Titled Tuesday Blitz"]
[Site "Chess.com"]
[Date "2020.12.01"]
[Round "5"]
[White "DraG0s3L"]
[Black "gmcorrales"]
[Result "1-0"]
[WhiteElo "2552"]
[BlackElo "2780"]
[TimeControl "180+1"]
[EndTime "10:55:17 PST"]
[Termination "DraG0s3L won on time"]

1. d4 {[%clk 0:03:00.9]} 1... Nf6 {[%clk 0:02:57.5]} 2. c4 {[%clk 0:02:59.2]}
2... g6 {[%clk 0:02:36.8]} 3. f3 {[%clk 0:02:59.2]} 3... d5 {[%clk 0:02:36.5]}
4. cxd5 {[%clk 0:02:59.2]} 4... Nxd5 {[%clk 0:02:37.4]} 5. e4 {[%clk 0:02:59.6]}
5... Nb6 {[%clk 0:02:37.9]} 6. Nc3 {[%clk 0:03:00.3]} 6... Bg7 {[%clk
0:02:37.7]} 7. Be3 {[%clk 0:03:01]} 7... O-O {[%clk 0:02:37.4]} 8. Qd2 {[%clk
0:03:00.1]} 8... f5 {[%clk 0:02:37.2]} 9. e5 {[%clk 0:02:58.7]} 9... Nc6 {[%clk
0:02:34.7]} 10. O-O-O {[%clk 0:02:54.4]} 10... Nb4 {[%clk 0:02:32.6]} 11. Nh3
{[%clk 0:02:50.4]} 11... Be6 {[%clk 0:02:20.3]} 12. Kb1 {[%clk 0:02:49.8]} 12...
Bc4 {[%clk 0:02:06.6]} 13. Nf4 {[%clk 0:02:39.5]} 13... Qd7 {[%clk 0:01:50.9]}
14. Bxc4+ {[%clk 0:02:32]} 14... Nxc4 {[%clk 0:01:50.9]} 15. Qe2 {[%clk
0:02:32.8]} 15... Nxe3 {[%clk 0:01:20.9]} 16. Qxe3 {[%clk 0:02:32.4]} 16... g5
{[%clk 0:01:06.8]} 17. Nh5 {[%clk 0:02:13.9]} 17... f4 {[%clk 0:01:03.4]} 18.
Qe4 {[%clk 0:02:10.8]} 18... c6 {[%clk 0:00:46.4]} 19. h4 {[%clk 0:02:01]} 19...
g4 {[%clk 0:00:44.4]} 20. Nxf4 {[%clk 0:01:56.6]} 20... Qf5 {[%clk 0:00:40.4]}
21. Qxf5 {[%clk 0:01:39.8]} 21... Rxf5 {[%clk 0:00:41.3]} 22. Ne6 {[%clk
0:01:40.5]} 22... gxf3 {[%clk 0:00:38]} 23. gxf3 {[%clk 0:01:39.7]} 23... Bh6
{[%clk 0:00:36.4]} 24. a3 {[%clk 0:01:24.6]} 24... Na6 {[%clk 0:00:32]} 25. f4
{[%clk 0:01:10.7]} 25... Kf7 {[%clk 0:00:28.9]} 26. Ng5+ {[%clk 0:01:08.3]}
26... Bxg5 {[%clk 0:00:28.1]} 27. hxg5 {[%clk 0:00:59.3]} 27... Kg7 {[%clk
0:00:27.6]} 28. Rh4 {[%clk 0:00:59.2]} 28... Raf8 {[%clk 0:00:23.5]} 29. Rdh1
{[%clk 0:00:59.3]} 29... Rxf4 {[%clk 0:00:12.9]} 30. Rxh7+ {[%clk 0:00:59.6]}
30... Kg6 {[%clk 0:00:13.4]} 31. Rxe7 {[%clk 0:00:58.6]} 31... R8f7 {[%clk
0:00:13.2]} 32. Rxf7 {[%clk 0:00:41.4]} 32... Kxf7 {[%clk 0:00:13.6]} 33. Rh7+
{[%clk 0:00:39.5]} 33... Ke6 {[%clk 0:00:13.3]} 34. Rxb7 {[%clk 0:00:35.4]}
34... Rxd4 {[%clk 0:00:13.5]} 35. g6 {[%clk 0:00:28.4]} 35... Rg4 {[%clk
0:00:11.1]} 36. g7 {[%clk 0:00:20.3]} 36... Kxe5 {[%clk 0:00:08.4]} 37. Rxa7
{[%clk 0:00:14.5]} 37... Nc5 {[%clk 0:00:08.1]} 38. a4 {[%clk 0:00:11.5]} 38...
Kd4 {[%clk 0:00:07]} 39. a5 {[%clk 0:00:10.7]} 39... Kc4 {[%clk 0:00:06.9]} 40.
Ka2 {[%clk 0:00:10.7]} 40... Nb3 {[%clk 0:00:05.1]} 41. a6 {[%clk 0:00:08.5]}
41... Rg1 {[%clk 0:00:04.8]} 42. Nb1 {[%clk 0:00:07.6]} 42... Rg3 {[%clk
0:00:04]} 43. Na3+ {[%clk 0:00:03.3]} 43... Kc5 {[%clk 0:00:02.7]} 44. Rb7
{[%clk 0:00:02.6]} 44... Nc1+ {[%clk 0:00:02.7]} 45. Kb1 {[%clk 0:00:03]} 45...
Ne2 {[%clk 0:00:02.6]} 46. a7 {[%clk 0:00:02.9]} 1-0

[Event "*** Titled Tuesday Blitz"]
[Site "Chess.com"]
[Date "2020.12.01"]
[Round "5"]
[White "vovachesss"]
[Black "BillieKimbah"]
[Result "0-1"]
[WhiteElo "2615"]
[BlackElo "2848"]
[TimeControl "180+1"]
[EndTime "10:55:17 PST"]
[Termination "BillieKimbah won on time"]

1. e4 {[%clk 0:02:57.7]} 1... c6 {[%clk 0:02:59.1]} 2. d4 {[%clk 0:02:53.1]}
2... d5 {[%clk 0:03:00]} 3. e5 {[%clk 0:02:49]} 3... c5 {[%clk 0:02:58.6]} 4.
dxc5 {[%clk 0:02:48.2]} 4... Nc6 {[%clk 0:02:58.1]} 5. Nf3 {[%clk 0:02:41.7]}
5... Bg4 {[%clk 0:02:56.6]} 6. c3 {[%clk 0:02:30.8]} 6... e6 {[%clk 0:02:54.1]}
7. Be3 {[%clk 0:02:29.7]} 7... a6 {[%clk 0:02:51.9]} 8. Bd4 {[%clk 0:02:27.6]}
8... Nge7 {[%clk 0:02:46]} 9. Nbd2 {[%clk 0:02:20.7]} 9... Ng6 {[%clk
0:02:42.3]} 10. h3 {[%clk 0:02:09.7]} 10... Bf5 {[%clk 0:02:38.4]} 11. Qe2
{[%clk 0:01:39.7]} 11... h5 {[%clk 0:02:28.6]} 12. Qe3 {[%clk 0:01:33.1]} 12...
Be7 {[%clk 0:02:24.4]} 13. Be2 {[%clk 0:01:28.4]} 13... Qc7 {[%clk 0:02:22.7]}
14. O-O {[%clk 0:01:15.4]} 14... h4 {[%clk 0:02:23]} 15. b4 {[%clk 0:01:12.5]}
15... a5 {[%clk 0:02:02]} 16. b5 {[%clk 0:01:03.8]} 16... Nb8 {[%clk 0:02:02]}
17. c4 {[%clk 0:01:04.2]} 17... O-O {[%clk 0:01:50.7]} 18. cxd5 {[%clk 0:00:53]}
18... exd5 {[%clk 0:01:51.6]} 19. Bd3 {[%clk 0:00:43.8]} 19... Qc8 {[%clk
0:01:43.5]} 20. Rac1 {[%clk 0:00:33.4]} 20... Qe6 {[%clk 0:01:41.1]} 21. Bb2
{[%clk 0:00:28.7]} 21... Bxd3 {[%clk 0:01:37.6]} 22. Qxd3 {[%clk 0:00:29.1]}
22... Nf4 {[%clk 0:01:23.1]} 23. Qe3 {[%clk 0:00:27.4]} 23... Qf5 {[%clk
0:01:23.4]} 24. Nd4 {[%clk 0:00:23.4]} 24... Qg5 {[%clk 0:01:23.3]} 25. Qf3
{[%clk 0:00:21.9]} 25... Nd7 {[%clk 0:01:23]} 26. Ne2 {[%clk 0:00:15.7]} 26...
Ne6 {[%clk 0:01:17.4]} 27. Qxd5 {[%clk 0:00:12]} 27... Ndxc5 {[%clk 0:01:15.8]}
28. Nf3 {[%clk 0:00:10.8]} 28... Qg6 {[%clk 0:01:15.6]} 29. Qc4 {[%clk
0:00:10.5]} 29... Nd3 {[%clk 0:01:09]} 30. Rb1 {[%clk 0:00:06.6]} 30... Rac8
{[%clk 0:01:08.1]} 31. Qd5 {[%clk 0:00:03.9]} 31... Rfd8 {[%clk 0:01:07]} 32.
Qxb7 {[%clk 0:00:04]} 32... Rc7 {[%clk 0:00:57.7]} 33. Qa6 {[%clk 0:00:04.2]}
33... Rc2 {[%clk 0:00:55.1]} 34. Ned4 {[%clk 0:00:03.6]} 34... Ndf4 {[%clk
0:00:50]} 35. Nxh4 {[%clk 0:00:02.1]} 35... Bxh4 {[%clk 0:00:48.3]} 36. Qb7
{[%clk 0:00:02.6]} 36... Nxd4 {[%clk 0:00:47.3]} 37. Bxd4 {[%clk 0:00:02.9]}
37... Rxd4 {[%clk 0:00:47.2]} 38. b6 {[%clk 0:00:03.3]} 38... Rd5 {[%clk
0:00:47.1]} 39. Qxd5 {[%clk 0:00:02.9]} 39... Nxd5 {[%clk 0:00:45.4]} 40. b7
{[%clk 0:00:03.8]} 40... Ne3 {[%clk 0:00:42.4]} 41. b8=Q+ {[%clk 0:00:04.2]}
41... Kh7 {[%clk 0:00:42.9]} 42. Qa8 {[%clk 0:00:04.2]} 42... Nxf1 {[%clk
0:00:36.4]} 43. Rxf1 {[%clk 0:00:04]} 43... Rxa2 {[%clk 0:00:35.7]} 44. Qf3
{[%clk 0:00:04.2]} 44... a4 {[%clk 0:00:32.8]} 45. g3 {[%clk 0:00:04.6]} 45...
Be7 {[%clk 0:00:31.7]} 46. h4 {[%clk 0:00:05.1]} 46... Ra3 {[%clk 0:00:24.8]}
47. Qf4 {[%clk 0:00:04.3]} 47... Kg8 {[%clk 0:00:19.2]} 48. Rc1 {[%clk
0:00:03.5]} 48... Rb3 {[%clk 0:00:18.4]} 49. Qxa4 {[%clk 0:00:03]} 49... Rxg3+
{[%clk 0:00:17.2]} 0-1